fUST/lending_fUST_20240128
["ID","MTS","AMOUNT","RATE_DAILY","PERIOD"]
[312903612,1706448631922,-1696.2836184,0.00012115,2]
[312903614,1706448631938,-159.97140679,0.00012115,2]
[312903616,1706448631947,-1485.48078161,0.00012115,2]
[312903617,1706448631956,-468.1978116,0.00012115,2]
[312903618,1706448631967,-10533.21564596,0.00012115,2]
[312903619,1706448631976,-20892.43059927,0.00012116,2]
[312903620,1706448631985,-494.81287237,0.00012116,2]
[312903621,1706448631994,-555.97053838,0.00012116,2]
[312903622,1706448632003,-155.00775039,0.00012116,2]
[312903623,1706448632012,-155.00775039,0.00012116,2]
[312903624,1706448632021,-37000.01230553,0.00012116,2]
[312903625,1706448632031,-161.19857963,0.00012116,2]
[312903626,1706448632040,-155.00775039,0.00012116,2]
[312903627,1706448632050,-620.0257606,0.00012116,2]
[312903628,1706448632060,-4818.41258945,0.00012116,2]
[312903629,1706448632069,-21705.86650889,0.00012116,2]
[312903630,1706448632078,-1580.96149177,0.00012117,2]
[312903631,1706448632088,-7968.22560607,0.00012117,2]
[312903632,1706448632097,-1027.23252462,0.00012117,2]
[312903633,1706448632107,-978.95259375,0.00012117,2]
[312903634,1706448632117,-5214.02314025,0.00012117,2]
[312903635,1706448632126,-155.00775039,0.00012117,2]
[312903636,1706448632135,-302.2469024,0.00012117,2]
[312903637,1706448632146,-5533.57940419,0.00012118,2]
[312903638,1706448632159,-81268.82977941,0.00012238,2]
[312903639,1706448632171,-19720.32843806,0.00012239,2]
[312903640,1706448632180,-329.86581438,0.00012239,2]
[312903641,1706448632190,-595.67298471,0.0001224,2]
[312903642,1706448632200,-639.21141232,0.0001224,2]
[312903643,1706448632211,-1243.61210586,0.0001224,2]
[312903644,1706448632222,-904.55199849,0.0001224,2]
[312903645,1706448632231,-155.00775039,0.0001224,2]
[312903646,1706448632242,-1995.52315242,0.0001224,2]
[312903647,1706448632252,-243.38918816,0.0001224,2]
[312903648,1706448632261,-262.62109468,0.00012241,2]
[312903649,1706448632270,-2041.12977295,0.00012241,2]
[312903650,1706448632279,-2817.80173688,0.00012241,2]
[312903651,1706448632290,-3870.77486364,0.00012241,2]
[312903652,1706448634617,155.00775039,0.00010903,2]
[312903692,1706448637936,-588.93888333,0.00012114,2]
[312903695,1706448637945,-18921.17730606,0.00012114,2]
[312903698,1706448637955,-11763.6964153,0.00012241,2]
[312903700,1706448637965,-170.66784928,0.00012245,2]
[312903702,1706448637974,-2076.27654373,0.00012245,2]
[312903703,1706448637983,-471.13604267,0.00012245,2]
[312903706,1706448637992,-155.00775039,0.00012246,2]
[312903707,1706448638001,-529.96178202,0.00012249,2]
[312903709,1706448638011,-19329.13320188,0.00012249,2]
[312903711,1706448638019,-2105.7958969,0.00012249,2]
[312903713,1706448638029,-2041.45797236,0.00012254,2]
[312903715,1706448638038,-3394.60090585,0.00012379,2]
[312903717,1706448638047,-164.932497,0.000124,2]
[312903719,1706448638056,-189.32811774,0.00012504,2]
[312903721,1706448638065,-296.34648317,0.00012504,2]
[312903723,1706448638074,-208.17176317,0.00012504,2]
[312903725,1706448638083,-297.37206321,0.00012504,2]
[312903727,1706448638092,-155.17453603,0.00012504,2]
[312903729,1706448638101,-880.74803518,0.00012504,2]
[312903731,1706448638110,-214.37321208,0.00012504,2]
[312903733,1706448638119,-166.53940446,0.00012513,2]
[312903735,1706448638128,-175.86052027,0.00012516,2]
[312903738,1706448638138,-155.67745124,0.00012542,2]
[312903739,1706448638153,-621.08630561,0.00012557,2]
[312903742,1706448638162,-675.88358332,0.0001265,2]
[312903744,1706448638172,-164.93249697,0.000127,2]
[312903746,1706448638180,-164.93249697,0.00013,2]
[312903747,1706448638190,-164.93249697,0.00013299,2]
[312903749,1706448638199,-200.0,0.00013468,2]
[312903751,1706448638209,-164.93249697,0.00013599,2]
[312903754,1706448638218,-194.89526067,0.00013657,2]
[312903756,1706448638229,-157.25655245,0.00013657,2]
[312903757,1706448638238,-155.26019958,0.00013657,2]
[312903759,1706448638247,-155.49597422,0.00013664,2]
[312903762,1706448638257,-209.92711265,0.00013664,2]
[312903763,1706448638266,-155.2565427,0.00013664,2]
[312903765,1706448638275,-287.12977384,0.0001369,2]
[312903767,1706448638284,-154.777918,0.00013699,2]
[312903769,1706448638293,-167.412069,0.00013699,2]
[312903771,1706448638302,-167.412069,0.00013699,2]
[312903774,1706448638311,-167.412069,0.00013699,2]
[312903776,1706448638320,-167.412069,0.00013699,2]
[312903778,1706448638330,-167.412069,0.00013699,2]
[312903780,1706448638339,-167.412069,0.00013699,2]
[312903782,1706448638347,-167.412069,0.00013699,2]
[312903784,1706448638357,-167.412069,0.00013699,2]
[312903785,1706448638366,-167.412069,0.00013699,2]
[312903787,1706448638375,-167.412069,0.00013699,2]
[312903789,1706448638385,-167.412069,0.00013699,2]
[312903791,1706448638395,-167.412069,0.00013699,2]
[312903793,1706448638404,-167.412069,0.00013699,2]
[312903795,1706448638414,-167.412069,0.00013699,2]
[312903797,1706448638422,-167.412069,0.00013699,2]
[312903799,1706448638431,-167.412069,0.00013699,2]
[312903801,1706448638441,-167.412069,0.00013699,2]
[312903804,1706448638450,-167.412069,0.00013699,2]
[312903805,1706448638459,-151.0,0.00013699,2]
[312903807,1706448638468,-151.0,0.00013699,2]
[312903808,1706448638477,-151.0,0.00013699,2]
[312903810,1706448638486,-151.0,0.00013699,2]
[312903811,1706448638495,-151.0,0.00013699,2]
[312903813,1706448638505,-151.0,0.00013699,2]
[312903815,1706448638513,-151.0,0.00013699,2]
[312903816,1706448638522,-151.0,0.00013699,2]
[312903818,1706448638531,-151.0,0.00013699,2]
[312903819,1706448638540,-151.0,0.00013699,2]
[312903821,1706448638549,-151.0,0.00013699,2]
[312903822,1706448638558,-151.0,0.00013699,2]
[312903824,1706448638568,-151.0,0.00013699,2]
[312903826,1706448638577,-259.166815,0.00013699,2]
[312903828,1706448638586,-3945.2738331,0.00013699,2]
[312903829,1706448638596,-3699.519471,0.00013699,2]
[312903831,1706448638605,-3699.519471,0.00013699,2]
[312903832,1706448638614,-3699.519471,0.00013699,2]
[312903834,1706448638623,-3699.519471,0.00013699,2]
[312903835,1706448638631,-3699.519471,0.00013699,2]
[312903836,1706448638640,-3699.519471,0.00013699,2]
[312903837,1706448638650,-3699.519471,0.00013699,2]
[312903838,1706448638659,-3699.519471,0.00013699,2]
[312903840,1706448638668,-3699.519471,0.00013699,2]
[312903842,1706448638678,-3699.519471,0.00013699,2]
[312903843,1706448638687,-3699.519471,0.00013699,2]
[312903845,1706448638696,-3699.519471,0.00013699,2]
[312903846,1706448638705,-3699.519471,0.00013699,2]
[312903848,1706448638715,-3699.519471,0.00013699,2]
[312903849,1706448638724,-3699.519471,0.00013699,2]
[312903850,1706448638733,-3699.519471,0.00013699,2]
[312903852,1706448638742,-3699.519471,0.00013699,2]
[312903853,1706448638751,-3699.519471,0.00013699,2]
[312903854,1706448638760,-3699.519471,0.00013699,2]
[312903855,1706448638770,-3699.519467,0.00013699,2]
[312903856,1706448638779,-151.0,0.00013699,2]
[312903857,1706448638788,-151.0,0.00013699,2]
[312903858,1706448638797,-151.0,0.00013699,2]
[312903859,1706448638806,-151.0,0.00013699,2]
[312903860,1706448638815,-151.0,0.00013699,2]
[312903861,1706448638824,-151.0,0.00013699,2]
[312903862,1706448638833,-151.0,0.00013699,2]
[312903863,1706448638842,-151.0,0.00013699,2]
[312903864,1706448638851,-151.0,0.00013699,2]
[312903865,1706448638860,-151.0,0.00013699,2]
[312903866,1706448638869,-151.0,0.00013699,2]
[312903867,1706448638878,-151.0,0.00013699,2]
[312903868,1706448638888,-9287.328681,0.00013699,2]
[312903869,1706448638898,-9287.328681,0.00013699,2]
[312903870,1706448638907,-9287.328681,0.00013699,2]
[312903871,1706448638916,-9287.328681,0.00013699,2]
[312903872,1706448638925,-9287.328681,0.00013699,2]
[312903873,1706448638934,-9287.328681,0.00013699,2]
[312903874,1706448638943,-9287.328681,0.00013699,2]
[312903875,1706448638951,-9287.328681,0.00013699,2]
[312903876,1706448638961,-9287.328681,0.00013699,2]
[312903877,1706448638969,-9287.328681,0.00013699,2]
[312903878,1706448638978,-9287.328681,0.00013699,2]
[312903879,1706448638987,-9287.328681,0.00013699,2]
[312903880,1706448638997,-9287.328681,0.00013699,2]
[312903881,1706448639006,-9287.328681,0.00013699,2]
[312903882,1706448639015,-9287.328681,0.00013699,2]
[312903883,1706448639024,-9287.328681,0.00013699,2]
[312903884,1706448639033,-9287.328681,0.00013699,2]
[312903885,1706448639042,-9287.328681,0.00013699,2]
[312903886,1706448639051,-9287.328681,0.00013699,2]
[312903887,1706448639060,-9287.328678,0.00013699,2]
[312903888,1706448639069,-1293.499794,0.00013699,2]
[312903889,1706448639078,-795.792497,0.00013699,2]
[312903890,1706448639087,-795.792497,0.00013699,2]
[312903891,1706448639096,-795.792497,0.00013699,2]
[312903892,1706448639106,-795.792497,0.00013699,2]
[312903893,1706448639115,-795.792497,0.00013699,2]
[312903894,1706448639124,-795.792497,0.00013699,2]
[312903895,1706448639134,-795.792497,0.00013699,2]
[312903896,1706448639143,-795.792497,0.00013699,2]
[312903897,1706448639155,-795.792497,0.00013699,2]
[312903898,1706448639164,-795.792497,0.00013699,2]
[312903899,1706448639174,-795.792497,0.00013699,2]
[312903900,1706448639183,-795.792497,0.00013699,2]
[312903901,1706448639192,-795.792497,0.00013699,2]
[312903902,1706448639201,-795.792497,0.00013699,2]
[312903903,1706448639210,-795.792497,0.00013699,2]
[312903904,1706448639220,-795.792497,0.00013699,2]
[312903905,1706448639229,-795.792497,0.00013699,2]
[312903906,1706448639238,-795.792497,0.00013699,2]
[312903907,1706448639248,-795.792497,0.00013699,2]
[312903908,1706448639258,-795.792494,0.00013699,2]
[312903909,1706448639266,-167.412069,0.00013699,2]
[312903910,1706448639276,-167.412069,0.00013699,2]
[312903911,1706448639285,-280.0,0.00014815,2]
[312903912,1706448639294,-151.0,0.00014975,2]
[312903913,1706448639303,-2726.22991836,0.00015,2]
[312903914,1706448639386,-688.68606905,0.00015,2]
[312903915,1706448639397,-297.00347325,0.00015,2]
[312903916,1706448639407,-155.16540482,0.00015198,2]
[312903917,1706448639416,-309.91431217,0.00015201,2]
[312903918,1706448639427,-2929.03323796,0.00015201,2]
[312903919,1706448639436,-151.0,0.00015204,2]
[312903920,1706448639445,-212.272603,0.00015204,2]
[312903921,1706448639455,-212.272603,0.00015204,2]
[312903922,1706448639464,-1583.8500325,0.00015328,2]
[312903923,1706448639472,-151.0,0.00016199,2]
[312903924,1706448639481,-212.272603,0.00016199,2]
[312903925,1706448639491,-212.272603,0.00016199,2]
[312903926,1706448639500,-151.0,0.00016201,2]
[312903927,1706448639509,-212.272603,0.00016201,2]
[312903928,1706448639518,-212.272603,0.00016201,2]
[312903929,1706448639528,-151.0,0.00016253,2]
[312903930,1706448639537,-391.0,0.00016297,2]
[312903931,1706448639546,-155.02635448,0.00016582,2]
[312903932,1706448639555,-155.02635448,0.00016582,2]
[312903933,1706448639564,-548.49851993,0.00016582,2]
[312903934,1706448639574,-77544.79097016,0.00016582,2]
[312903935,1706448639584,-179.40761383,0.00017191,2]
[312903936,1706448639593,-1701.68458093,0.00017192,2]
[312903937,1706448639602,-151.0,0.00017192,2]
[312903938,1706448639611,-212.272603,0.00017192,2]
[312903939,1706448639621,-212.272603,0.00017192,2]
[312903940,1706448639630,-152.035045,0.00017193,2]
[312903941,1706448639639,-155.02116883,0.00017194,2]
[312903942,1706448639648,-155.02325349,0.00017194,2]
[312903943,1706448639657,-788.87275899,0.00017194,2]
[312903944,1706448639666,-196.97481196,0.00017195,2]
[312903945,1706448639675,-964.96141811,0.00017201,2]
[312903946,1706448639686,-151.0,0.00017234,2]
[312903947,1706448639695,-212.272603,0.00017234,2]
[312903948,1706448639705,-212.272603,0.00017234,2]
[312903949,1706448639714,-151.0,0.0001753,2]
[312903950,1706448639723,-200.0,0.00017926,2]
[312903951,1706448639732,-237.0,0.00017926,2]
[312903952,1706448639743,-199.4949389,0.00018078,2]
[312903953,1706448639753,-200.89934999,0.00018423,2]
[312903954,1706448639764,-166.760351,0.00018424,2]
[312903955,1706448639773,-212.272603,0.00018424,2]
[312903956,1706448639783,-212.272603,0.00018424,2]
[312903957,1706448639793,-212.272603,0.00018424,2]
[312903958,1706448639802,-212.272603,0.00018424,2]
[312903959,1706448639811,-212.272603,0.00018424,2]
[312903960,1706448639821,-212.272603,0.00018424,2]
[312903961,1706448639830,-212.272603,0.00018424,2]
[312903962,1706448639840,-212.272603,0.00018424,2]
[312903963,1706448639849,-212.272603,0.00018424,2]
[312903964,1706448639858,-212.27259651,0.00018424,2]
[312903965,1706448639868,-608.61746145,0.00018424,2]
[312903966,1706448639877,-601.95353015,0.00018424,2]
[312903967,1706448639886,-200.01058107,0.00018424,2]
[312903968,1706448639895,-262.21864717,0.00018424,2]
[312903969,1706448639905,-171.95327391,0.00018424,2]
[312903970,1706448639915,-311.755237,0.0001863,2]
[312903971,1706448639924,-151.0,0.00018807,2]
[312903972,1706448639933,-823.2846827,0.000189,2]
[312903973,1706448639942,-1584.05603829,0.00019,2]
[312903975,1706448639951,-170.245542,0.00019178,2]
[312903976,1706448639960,-169.131762,0.00019178,2]
[312903977,1706448639969,-156.21984121,0.00019409,2]
[312903978,1706448639978,-303.81437787,0.000197,2]
[312903979,1706448639987,-679.47851073,0.0002,2]
[312903980,1706448639996,-244.23818961,0.0002,2]
[312903981,1706448640006,-1199.39136189,0.0002,2]
[312903982,1706448640015,-155.02325349,0.0002,2]
[312903983,1706448640024,-151.0,0.00020085,2]
[312903984,1706448640034,-177.3061975,0.00020274,2]
[312903985,1706448640043,-306.0,0.00020274,2]
[312903986,1706448640051,-153.0,0.00020274,2]
[312903987,1706448640060,-153.0,0.00020274,2]
[312903988,1706448640069,-153.0,0.00020274,2]
[312903989,1706448640079,-153.0,0.00020274,2]
[312903990,1706448640088,-153.0,0.00020274,2]
[312903991,1706448640097,-153.0,0.00020274,2]
[312903992,1706448640106,-153.0,0.00020274,2]
[312903993,1706448640116,-153.9764062,0.00020274,2]
[312903994,1706448640125,-632.06111571,0.00020432,2]
[312903995,1706448640134,-153.0,0.00020548,2]
[312903996,1706448640145,-153.0,0.00020548,2]
[312903998,1706448640154,-153.0,0.00020548,2]
[312903999,1706448640166,-1293.499794,0.00020548,2]
[312904000,1706448640175,-153.0,0.00021096,2]
[312904001,1706448640184,-153.0,0.00021096,2]
[312904002,1706448640194,-153.0,0.00021096,2]
[312904003,1706448640203,-153.0,0.00021096,2]
[312904004,1706448640213,-155.14514716,0.00021201,2]
[312904005,1706448640223,-1828.0659992,0.00021202,2]
[312904006,1706448640234,-2086.73700022,0.00021202,2]
[312904007,1706448640246,-151.0,0.00021362,2]
[312904008,1706448640255,-620.60305579,0.00021453,2]
[312904009,1706448640265,-500.0,0.0002171,2]
[312904010,1706448640274,-500.0,0.0002171,2]
[312904011,1706448640283,-500.0,0.0002171,2]
[312904012,1706448640292,-337.70440343,0.0002171,2]
[312904013,1706448640302,-500.0,0.0002171,2]
[312904014,1706448640310,-500.0,0.0002171,2]
[312904015,1706448640320,-500.0,0.0002171,2]
[312904016,1706448640329,-500.0,0.0002171,2]
[312904017,1706448640338,-450.11338084,0.0002171,2]
[312904018,1706448640347,-500.0,0.0002171,2]
[312904019,1706448640357,-156.35796755,0.0002171,2]
[312904020,1706448640366,-634.03071431,0.0002171,2]
[312904021,1706448640375,-500.0,0.0002171,2]
[312904022,1706448640384,-500.0,0.0002171,2]
[312904023,1706448640393,-500.0,0.0002171,2]
[312904024,1706448640403,-500.0,0.0002171,2]
[312904025,1706448640412,-425.31454102,0.0002171,2]
[312904026,1706448640421,-500.0,0.0002171,2]
[312904027,1706448640430,-500.0,0.0002171,2]
[312904028,1706448640439,-500.0,0.0002171,2]
[312904029,1706448640449,-500.0,0.0002171,2]
[312904030,1706448640458,-500.0,0.0002171,2]
[312904031,1706448640467,-500.0,0.0002171,2]
[312904032,1706448640476,-500.0,0.0002171,2]
[312904033,1706448640485,-500.0,0.0002171,2]
[312904034,1706448640495,-500.0,0.0002171,2]
[312904035,1706448640504,-500.0,0.0002171,2]
[312904036,1706448640513,-647.02207258,0.0002171,2]
[312904037,1706448640522,-500.0,0.0002171,2]
[312904038,1706448640531,-500.0,0.0002171,2]
[312904039,1706448640540,-500.0,0.0002171,2]
[312904040,1706448640550,-447.53970492,0.0002171,2]
[312904041,1706448640559,-500.0,0.0002171,2]
[312904042,1706448640568,-500.0,0.0002171,2]
[312904043,1706448640577,-500.0,0.0002171,2]
[312904044,1706448640587,-164.27609953,0.0002171,2]
[312904045,1706448640596,-500.0,0.0002171,2]
[312904046,1706448640605,-500.0,0.0002171,2]
[312904047,1706448640614,-500.0,0.0002171,2]
[312904048,1706448640623,-500.0,0.0002171,2]
[312904049,1706448640633,-500.0,0.0002171,2]
[312904050,1706448640642,-500.0,0.0002171,2]
[312904051,1706448640653,-500.0,0.0002171,2]
[312904052,1706448640662,-500.0,0.0002171,2]
[312904053,1706448640672,-500.0,0.0002171,2]
[312904054,1706448640681,-500.0,0.0002171,2]
[312904055,1706448640690,-276000.0,0.00021711,2]
[312904056,1706448640700,-50000.0,0.00021811,2]
[312904057,1706448640709,-306.54562829,0.00021815,2]
[312904058,1706448640718,-1376.49457106,0.00021817,2]
[312904059,1706448640727,-180.05253164,0.00021906,2]
[312904060,1706448640737,-157.93943544,0.00021913,2]
[312904061,1706448640746,-289.28113215,0.00021914,2]
[312904062,1706448640755,-155.04495783,0.00021915,2]
[312904063,1706448640764,-303.44835747,0.00021915,2]
[312904064,1706448640773,-156.61472977,0.00021915,2]
[312904065,1706448640782,-1650.91924153,0.00021915,2]
[312904066,1706448640791,-166.8863606,0.00021915,2]
[312904067,1706448640800,-265.25857246,0.00021916,2]
[312904068,1706448640809,-155.05735957,0.00021916,2]
[312904069,1706448640818,-500.0,0.00021916,2]
[312904070,1706448640827,-500.0,0.00021916,2]
[312904071,1706448640837,-415.76505033,0.00021916,2]
[312904073,1706448640913,-298.48147438,0.00021916,2]
[312904074,1706448640923,-160.99225998,0.00021916,2]
[312904075,1706448640932,-586.9872074,0.00021916,2]
[312904076,1706448640942,-500.0,0.00021916,2]
[312904077,1706448640952,-500.0,0.00021916,2]
[312904078,1706448640961,-500.0,0.00021916,2]
[312904079,1706448640970,-500.0,0.00021916,2]
[312904080,1706448640979,-481.11357031,0.00021916,2]
[312904081,1706448640988,-500.0,0.00021916,2]
[312904082,1706448640998,-193.66564597,0.00021916,2]
[312904083,1706448641007,-510.194983,0.00021917,2]
[312904084,1706448641016,-500.0,0.00021917,2]
[312904085,1706448641025,-500.0,0.00021917,2]
[312904086,1706448641034,-500.0,0.00021917,2]
[312904087,1706448641044,-500.0,0.00021917,2]
[312904088,1706448641053,-500.0,0.00021917,2]
[312904089,1706448641063,-500.0,0.00021917,2]
[312904090,1706448641071,-500.0,0.00021917,2]
[312904091,1706448641080,-500.0,0.00021917,2]
[312904092,1706448641089,-500.0,0.00021917,2]
[312904093,1706448641099,-915.71,0.00021917,2]
[312904094,1706448641109,-500.0,0.00021917,2]
[312904095,1706448641117,-500.0,0.00021917,2]
[312904096,1706448641126,-500.0,0.00021917,2]
[312904097,1706448641135,-500.0,0.00021917,2]
[312904098,1706448641145,-500.0,0.00021917,2]
[312904099,1706448641154,-507.78936856,0.00021917,2]
[312904100,1706448641165,-500.0,0.00021917,2]
[312904101,1706448641174,-501.09,0.00021917,2]
[312904102,1706448641183,-500.0,0.00021917,2]
[312904103,1706448641192,-500.0,0.00021917,2]
[312904104,1706448641202,-500.0,0.00021917,2]
[312904105,1706448641211,-500.0,0.00021917,2]
[312904106,1706448641220,-507.68,0.00021917,2]
[312904107,1706448641229,-155.02635448,0.00021917,2]
[312904108,1706448641239,-500.0,0.00021917,2]
[312904109,1706448641248,-1002.23887986,0.00021917,2]
[312904110,1706448641257,-500.0,0.00021917,2]
[312904111,1706448641265,-694.71,0.00021917,2]
[312904112,1706448641275,-501.56619566,0.00021917,2]
[312904113,1706448641283,-500.0,0.00021917,2]
[312904114,1706448641293,-818.16,0.00021917,2]
[312904115,1706448641302,-500.0,0.00021917,2]
[312904116,1706448641311,-500.0,0.00021917,2]
[312904117,1706448641320,-500.0,0.00021917,2]
[312904118,1706448641329,-500.0,0.00021917,2]
[312904119,1706448641339,-500.0,0.00021917,2]
[312904120,1706448641348,-185.58917988,0.00021917,2]
[312904121,1706448641357,-500.0,0.00021917,2]
[312904122,1706448641366,-500.0,0.00021917,2]
[312904123,1706448641375,-500.0,0.00021917,2]
[312904124,1706448641384,-500.0,0.00021917,2]
[312904125,1706448641393,-500.0,0.00021917,2]
[312904126,1706448641402,-500.0,0.00021917,2]
[312904127,1706448641412,-500.0,0.00021917,2]
[312904128,1706448641421,-500.0,0.00021917,2]
[312904129,1706448641430,-500.0,0.00021917,2]
[312904130,1706448641439,-1987.98,0.00021917,2]
[312904131,1706448641448,-367.80667092,0.00021917,2]
[312904132,1706448641456,-500.0,0.00021917,2]
[312904133,1706448641465,-500.0,0.00021917,2]
[312904134,1706448641475,-500.0,0.00021917,2]
[312904135,1706448641484,-500.0,0.00021917,2]
[312904136,1706448641493,-500.0,0.00021917,2]
[312904137,1706448641502,-1768.69,0.00021917,2]
[312904138,1706448641511,-500.0,0.00021917,2]
[312904139,1706448641520,-500.0,0.00021917,2]
[312904140,1706448641530,-904.35,0.00021917,2]
[312904141,1706448641539,-500.0,0.00021917,2]
[312904142,1706448641548,-500.0,0.00021917,2]
[312904143,1706448641557,-5529.41,0.00021917,2]
[312904144,1706448641566,-500.0,0.00021917,2]
[312904145,1706448641576,-500.0,0.00021917,2]
[312904146,1706448641585,-500.0,0.00021917,2]
[312904147,1706448641594,-1757.48,0.00021917,2]
[312904148,1706448641603,-500.0,0.00021917,2]
[312904149,1706448641613,-500.0,0.00021917,2]
[312904150,1706448641622,-500.0,0.00021917,2]
[312904151,1706448641631,-897.64,0.00021917,2]
[312904152,1706448641640,-500.0,0.00021917,2]
[312904153,1706448641649,-500.0,0.00021917,2]
[312904154,1706448641657,-500.0,0.00021917,2]
[312904155,1706448641666,-500.0,0.00021917,2]
[312904156,1706448641676,-500.0,0.00021917,2]
[312904157,1706448641685,-500.0,0.00021917,2]
[312904158,1706448641693,-557.08,0.00021917,2]
[312904159,1706448641703,-560.74,0.00021917,2]
[312904160,1706448641712,-500.0,0.00021917,2]
[312904161,1706448641721,-500.0,0.00021917,2]
[312904162,1706448641729,-527.14,0.00021917,2]
[312904163,1706448641738,-153.33165401,0.00021917,2]
[312904164,1706448641747,-500.0,0.00021917,2]
[312904165,1706448641756,-500.0,0.00021917,2]
[312904166,1706448641765,-500.0,0.00021917,2]
[312904167,1706448641774,-500.0,0.00021917,2]
[312904168,1706448641783,-1390.76,0.00021917,2]
[312904169,1706448641792,-500.0,0.00021917,2]
[312904170,1706448641800,-500.0,0.00021917,2]
[312904171,1706448641809,-500.0,0.00021917,2]
[312904172,1706448641818,-500.0,0.00021917,2]
[312904173,1706448641827,-500.0,0.00021917,2]
[312904174,1706448641836,-2618.59,0.00021917,2]
[312904175,1706448641845,-270.96680179,0.00021917,2]
[312904176,1706448641854,-500.0,0.00021917,2]
[312904177,1706448641863,-500.0,0.00021917,2]
[312904178,1706448641871,-500.0,0.00021917,2]
[312904179,1706448641881,-906.05,0.00021917,2]
[312904180,1706448641890,-500.0,0.00021917,2]
[312904181,1706448641899,-500.0,0.00021917,2]
[312904182,1706448641908,-500.0,0.00021917,2]
[312904183,1706448641917,-500.0,0.00021917,2]
[312904184,1706448641925,-500.0,0.00021917,2]
[312904185,1706448641934,-1828.36,0.00021917,2]
[312904186,1706448641943,-500.0,0.00021917,2]
[312904187,1706448641952,-1781.92,0.00021917,2]
[312904188,1706448641961,-500.0,0.00021917,2]
[312904189,1706448641970,-500.0,0.00021917,2]
[312904190,1706448641979,-156.42516188,0.00021917,2]
[312904191,1706448641989,-1024.81,0.00021917,2]
[312904192,1706448641998,-819.23,0.00021917,2]
[312904193,1706448642006,-2156.52,0.00021917,2]
[312904194,1706448642016,-500.0,0.00021917,2]
[312904195,1706448642026,-500.0,0.00021917,2]
[312904196,1706448642035,-500.0,0.00021917,2]
[312904197,1706448642044,-500.0,0.00021917,2]
[312904198,1706448642053,-500.0,0.00021917,2]
[312904199,1706448642062,-500.0,0.00021917,2]
[312904200,1706448642071,-500.0,0.00021917,2]
[312904201,1706448642080,-500.0,0.00021917,2]
[312904202,1706448642090,-500.0,0.00021917,2]
[312904203,1706448642099,-500.0,0.00021917,2]
[312904204,1706448642108,-500.0,0.00021917,2]
[312904205,1706448642118,-2872.15,0.00021917,2]
[312904206,1706448642127,-2219.22,0.00021917,2]
[312904207,1706448642135,-1181.84,0.00021917,2]
[312904208,1706448642145,-500.0,0.00021917,2]
[312904209,1706448642155,-535.6646005,0.00021917,2]
[312904210,1706448642167,-11221.03,0.00021917,2]
[312904211,1706448642176,-932.43,0.00021917,2]
[312904212,1706448642185,-500.0,0.00021917,2]
[312904213,1706448642194,-500.0,0.00021917,2]
[312904214,1706448642204,-500.0,0.00021917,2]
[312904215,1706448642213,-500.0,0.00021917,2]
[312904216,1706448642222,-500.0,0.00021917,2]
[312904217,1706448642232,-500.0,0.00021917,2]
[312904218,1706448642304,-500.0,0.00021917,2]
[312904219,1706448642313,-500.0,0.00021917,2]
[312904220,1706448642323,-1161.91,0.00021917,2]
[312904221,1706448642332,-624.72253014,0.00021917,2]
[312904222,1706448642341,-500.0,0.00021917,2]
[312904223,1706448642350,-500.0,0.00021917,2]
[312904224,1706448642359,-500.0,0.00021917,2]
[312904225,1706448642368,-500.0,0.00021917,2]
[312904226,1706448642377,-500.0,0.00021917,2]
[312904227,1706448642386,-2383.88,0.00021917,2]
[312904228,1706448642395,-500.0,0.00021917,2]